[Event "13th All African Rapid-ch Women 2024"]
[Site "Accra"]
[Date "2024.03.10"]
[Round "1.1"]
[White "Shaba, Linda Dalitso"]
[Black "Wafa, Shahenda"]
[Result "0-1"]
[ECO "E60"]
[WhiteElo "1836"]
[BlackElo "2083"]
[Annotator "RC"]
[PlyCount "126"]
[EventDate "2024.03.07"]
[EventType "rapid"]
[EventCountry "GHA"]
[SourceTitle "playchess.com"]
[Source "ChessBase"]
[SourceQuality "1"]
[TimeControl "900+10"]

1. d4 {[%emt 0:00:03]} Nf6 {[%emt 0:00:02]} 2. Nf3 {[%emt 0:00:04]} g6 {[%emt 0:00:03]} 3. c4 {[%emt 0:00:03]} Bg7 {[%emt 0:00:02]} 4. g3 {[%emt 0:00:03]} O-O {[%emt 0:00:03]} 5. Bg2 {[%emt 0:00:02]} d6 {[%emt 0:00:02]} 6. O-O {[%emt 0:00:22]} Bf5 {[%emt 0:00:11]} 7. Nc3 {[%emt 0:00:28]} Ne4 {[%emt 0:00:07]} 8. Nh4 {[%emt 0:00:29]} Nxc3 {[%emt 0:00:02]} 9. bxc3 {[%emt 0:00:02]} Bc8 {[%emt 0:00:02]} 10. Qb3 {[%emt 0:00:08]} c6 {[%emt 0:00:29]} 11. Rb1 {[%emt 0:01:25]} Qc7 {[%emt 0:01:04]} 12. Ba3 {[%emt 0:01:45]} Nd7 {[%emt 0:02:46]} 13. Rfe1 {[%emt 0:03:32]} Re8 {[%emt 0:00:43]} 14. e4 {[%emt 0:01:06]} c5 {[%emt 0:02:27]} 15. d5 {[%emt 0:01:54]} Nb6 {[%emt 0:00:54]} 16. f4 {[%emt 0:01:59]} Bd7 {[%emt 0:00:18]} 17. Bf1 {[%emt 0:00:19]} Rab8 {[%emt 0:00:43]} 18. Nf3 {[%emt 0:00:06]} Bg4 {[%emt 0:01:48]} 19. Kf2 {[%emt 0:00:47]} Qd7 {[%emt 0:00:41]} 20. Bc1 {[%emt 0:01:04]} Bh3 {[%emt 0:02:22]} 21. Be2 {[%emt 0:01:21]} Bg4 {[%emt 0:01:07]} 22. Bf1 {[%emt 0:00:01]} Qa4 {[%emt 0:00:15]} 23. Bd2 {[%emt 0:00:07]} Qd7 {[%emt 0:00:29]} 24. Bc1 {[%emt 0:00:16]} h5 {[%emt 0:00:05]} 25. h4 {[%emt 0:00:30]} e5 {[%emt 0:01:00]} 26. Bd2 {[%emt 0:00:32]} Bh6 {[%emt 0:01:08]} 27. fxe5 {[%emt 0:00:33]} Bxd2 {[%emt 0:00:04]} 28. Nxd2 {[%emt 0:00:01]} Rxe5 {[%emt 0:00:02]} 29. Nf3 {[%emt 0:00:17]} Bxf3 {[%emt 0:00:02]} 30. Kxf3 {[%emt 0:00:08]} Qg4+ {[%emt 0:00:01]} 31. Kf2 {[%emt 0:00:30]} Rxe4 {[%emt 0:00:01]} 32. Bg2 {[%emt 0:00:08]} Rxe1 {[%emt 0:00:22]} 33. Rxe1 {[%emt 0:00:02]} Qxc4 {[%emt 0:00:03]} 34. Qxc4 {[%emt 0:00:29]} Nxc4 {[%emt 0:00:02]} 35. Re7 {[%emt 0:00:04]} Kf8 {[%emt 0:00:01]} 36. Rc7 {[%emt 0:00:05]} Ke8 {[%emt 0:00:14]} 37. Bh3 {[%emt 0:00:07]} Ne5 {[%emt 0:00:02]} 38. Rc8+ {[%emt 0:00:10]} Rxc8 {[%emt 0:00:02]} 39. Bxc8 {[%emt 0:00:01]} b5 {[%emt 0:00:20]} 40. Ba6 {[%emt 0:00:09]} b4 {[%emt 0:00:06]} 41. cxb4 {[%emt 0:00:03]} cxb4 {[%emt 0:00:00]} 42. Ke3 {[%emt 0:00:05]} Kd7 {[%emt 0:00:08]} 43. Kd4 {[%emt 0:00:13]} Kc7 {[%emt 0:00:02]} 44. Bb5 {[%emt 0:00:05]} Kb6 {[%emt 0:00:04]} 45. Be8 {[%emt 0:00:10]} a5 {[%emt 0:00:01]} 46. Ba4 {[%emt 0:00:10]} Kc7 {[%emt 0:01:08]} 47. Be8 {[%emt 0:00:07]} Kd8 {[%emt 0:00:16]} 48. Bb5 {[%emt 0:00:07]} Ke7 {[%emt 0:00:02]} 49. Be2 {[%emt 0:00:10]} Kf6 {[%emt 0:00:09]} 50. Ke3 {[%emt 0:00:28]} a4 {[%emt 0:00:14]} 51. Bd1 {[%emt 0:00:09]} b3 {[%emt 0:00:46]} 52. a3 {[%emt 0:00:26]} Nc4+ {[%emt 0:00:02]} 53. Kd4 {[%emt 0:00:12]} Nxa3 {[%emt 0:00:02]} 54. Kc3 {[%emt 0:00:04]} Ke5 {[%emt 0:00:13]} 55. Bf3 {[%emt 0:00:06]} Nb5+ {[%emt 0:00:06]} 56. Kb2 {[%emt 0:00:03]} Kd4 {[%emt 0:00:08]} 57. g4 {[%emt 0:00:19]} hxg4 {[%emt 0:00:03]} 58. Bxg4 {[%emt 0:00:01]} Kxd5 {[%emt 0:00:07]} 59. Bf3+ {[%emt 0:00:36]} Kc4 {[%emt 0:00:08]} 60. Bc6 {[%emt 0:00:05]} a3+ {[%emt 0:00:02]} 61. Kb1 {[%emt 0:00:02]} b2 {[%emt 0:00:08]} 62. Be8 {[%emt 0:00:19]} Nc3+ {[%emt 0:00:05]} 63. Kc2 {[%emt 0:00:28]} b1=Q+ {[%emt 0:00:10]} 0-1

[Event "13th All African Rapid-ch Women 2024"]
[Site "Accra"]
[Date "2024.03.10"]
[Round "1.2"]
[White "Marochkina, Nadezhda Valerevna"]
[Black "Nakabo, Peninah"]
[Result "0-1"]
[ECO "A70"]
[WhiteElo "1819"]
[BlackElo "1836"]
[Annotator "NA RC"]
[PlyCount "66"]
[EventDate "2024.03.07"]
[EventType "rapid"]
[EventCountry "GHA"]
[SourceTitle "playchess.com"]
[Source "ChessBase"]
[SourceQuality "1"]
[TimeControl "900+10"]

1. d4 {[%emt 0:00:02]} e6 {[%emt 0:00:04]} 2. c4 {[%emt 0:00:02]} c5 {[%emt 0:00:02]} 3. d5 {[%emt 0:00:29]} exd5 {[%emt 0:00:04]} 4. cxd5 {[%emt 0:00:02]} Nf6 {[%emt 0:00:05]} 5. Nc3 {[%emt 0:00:27]} g6 {[%emt 0:00:12]} 6. e4 {[%emt 0:01:31]} d6 {[%emt 0:00:02]} 7. Nf3 {[%emt 0:00:50]} Bg4 {[%emt 0:00:25]} 8. h3 {[%emt 0:00:17]} Bxf3 {[%emt 0:00:02]} 9. Qxf3 {[%emt 0:00:02]} Bg7 {[%emt 0:00:13]} 10. Bd3 {[%emt 0:02:03]} O-O {[%emt 0:00:09]} 11. O-O {[%emt 0:00:10]} a6 {[%emt 0:00:08]} 12. a4 {[%emt 0:00:18]} Nbd7 {[%emt 0:00:11]} 13. Qg3 {[%emt 0:00:51]} Ne5 {[%emt 0:00:13]} 14. Bc2 {[%emt 0:00:22]} Rb8 {[%emt 0:00:32]} 15. f4 {[%emt 0:01:45]} Nh5 {[%emt 0:00:10]} 16. Qe1 {[%emt 0:00:26]} Nd7 {[%emt 0:00:14]} 17. f5 {[%emt 0:00:46]} Ne5 {[%emt 0:00:40]} 18. Ne2 {[%emt 0:02:04]} b5 {[%emt 0:00:20]} 19. Nf4 {[%emt 0:00:42]} Nxf4 {[%emt 0:00:04]} 20. Rxf4 {[%emt 0:00:07]} b4 {[%emt 0:00:26]} 21. fxg6 {[%emt 0:01:35]} fxg6 {[%emt 0:00:19]} 22. Qe2 {[%emt 0:01:36]} a5 {[%emt 0:00:20]} 23. Rb1 {[%emt 0:00:28]} c4 {[%emt 0:00:55]} 24. Be3 {[%emt 0:01:05]} b3 {[%emt 0:00:20]} 25. Bd1 {[%emt 0:00:10]} Nd3 {[%emt 0:00:11]} 26. Rxf8+ {[%emt 0:00:48]} Qxf8 {[%emt 0:00:03]} 27. Qd2 {[%emt 0:00:12]} Rb4 {[%emt 0:00:46]} 28. Be2 {[%emt 0:00:11]} Ne5 {[%emt 0:01:12]} 29. Ra1 {[%emt 0:00:25]} Qe8 {[%emt 0:00:21]} 30. Bd4 {[%emt 0:00:03]} Rxa4 {[%emt 0:00:23]} 31. Rxa4 {[%emt 0:00:12]} Qxa4 {[%emt 0:00:05]} 32. Bc3 {[%emt 0:00:01]} Qa1+ {[%emt 0:00:57]} 33. Kh2 {[%emt 0:00:01]} a4 {[%emt 0:00:14]} 0-1

[Event "13th All African Rapid-ch Women 2024"]
[Site "Accra"]
[Date "2024.03.10"]
[Round "1.3"]
[White "Banda Natalie Katlo"]
[Black "PEACE SAMSON"]
[Result "0-1"]
[ECO "B13"]
[WhiteElo "1772"]
[BlackElo "1870"]
[Annotator "NA RC"]
[PlyCount "118"]
[EventDate "2024.03.07"]
[EventType "rapid"]
[EventCountry "GHA"]
[SourceTitle "playchess.com"]
[Source "ChessBase"]
[SourceQuality "1"]
[TimeControl "900+10"]

1. d4 {[%emt 0:00:01]} d5 {[%emt 0:00:02]} 2. Nf3 {[%emt 0:00:01]} Nf6 {[%emt 0:00:02]} 3. e3 {[%emt 0:00:01]} g6 {[%emt 0:00:18]} 4. Nbd2 {[%emt 0:00:04]} c5 {[%emt 0:00:46]} 5. c3 {[%emt 0:00:08]} cxd4 {[%emt 0:00:03]} 6. exd4 {[%emt 0:00:03]} Bg7 {[%emt 0:00:02]} 7. Bd3 {[%emt 0:00:37]} Nc6 {[%emt 0:00:09]} 8. O-O {[%emt 0:00:05]} O-O {[%emt 0:00:02]} 9. Re1 {[%emt 0:00:02]} Bd7 {[%emt 0:00:19] B13: Caro-Kann: Exchange Variation and Panov-Botvinnik Attack.} 10. Qe2 {[%emt 0:01:09]} Re8 {[%emt 0:00:06]} 11. Bb5 {[%emt 0:00:45]} a6 {[%emt 0:00:08]} 12. Bxc6 {[%emt 0:00:07]} Bxc6 {[%emt 0:00:01]} 13. Ne5 {[%emt 0:00:07]} Bb5 {[%emt 0:00:05]} 14. Qd1 {[%emt 0:00:33]} Nd7 {[%emt 0:00:06]} 15. Ndf3 {[%emt 0:00:29]} Nf6 {[%emt 0:02:00]} 16. Ng5 {[%emt 0:01:13]} Rf8 {[%emt 0:00:21]} 17. a4 {[%emt 0:03:09]} Bd7 {[%emt 0:00:22]} 18. Qe2 {[%emt 0:00:20]} e6 {[%emt 0:00:11]} 19. b3 {[%emt 0:00:50]} Rc8 {[%emt 0:00:06]} 20. Ba3 {[%emt 0:00:04]} Rxc3 {[%emt 0:02:45]} 21. Bxf8 {[%emt 0:00:03]} Qxf8 {[%emt 0:00:07]} 22. Ngxf7 {[%emt 0:01:59]} Rxb3 {[%emt 0:03:57]} 23. Nxd7 {[%emt 0:00:16]} Qxf7 {[%emt 0:00:06]} 24. Nc5 {[%emt 0:00:43]} Rb4 {[%emt 0:00:49]} 25. Qd2 {[%emt 0:00:29]} Rc4 {[%emt 0:00:59]} 26. Rac1 {[%emt 0:01:16]} Rxc1 {[%emt 0:00:54]} 27. Qxc1 {[%emt 0:00:02]} Ng4 {[%emt 0:00:23]} 28. Qb2 {[%emt 0:01:17]} Qf4 {[%emt 0:00:24]} 29. g3 {[%emt 0:01:17]} Qxd4 {[%emt 0:00:52]} 30. Qxd4 {[%emt 0:00:22]} Bxd4 {[%emt 0:00:01]} 31. Nd3 {[%emt 0:00:01]} Kf7 {[%emt 0:00:42]} 32. h3 {[%emt 0:00:18]} Nf6 {[%emt 0:00:14]} 33. Rb1 {[%emt 0:00:20]} b6 {[%emt 0:00:13]} 34. Nb4 {[%emt 0:01:01]} a5 {[%emt 0:00:12]} 35. Nc6 {[%emt 0:00:54]} Bc5 {[%emt 0:00:21]} 36. Rb5 {[%emt 0:00:33]} Ne4 {[%emt 0:00:34]} 37. Ne5+ {[%emt 0:00:01]} Ke7 {[%emt 0:00:35]} 38. Nd3 {[%emt 0:00:01]} Bd4 {[%emt 0:00:35]} 39. Rb3 {[%emt 0:00:26]} Nxg3 {[%emt 0:00:35]} 40. Kg2 {[%emt 0:00:22]} Ne4 {[%emt 0:00:04]} 41. f3 {[%emt 0:00:07]} Nd2 {[%emt 0:00:39]} 42. Ra3 {[%emt 0:00:15]} g5 {[%emt 0:00:12]} 43. Ne1 {[%emt 0:00:11]} Nc4 {[%emt 0:00:07]} 44. Rb3 {[%emt 0:00:07]} Kd6 {[%emt 0:00:08]} 45. Nc2 {[%emt 0:00:03]} Bc5 {[%emt 0:00:07]} 46. Kg3 {[%emt 0:00:07]} h5 {[%emt 0:00:05]} 47. h4 {[%emt 0:00:08]} Nd2 {[%emt 0:00:19]} 48. Rd3 {[%emt 0:00:11]} gxh4+ {[%emt 0:00:10]} 49. Kxh4 {[%emt 0:00:06]} Nc4 {[%emt 0:00:12]} 50. Rb3 {[%emt 0:00:08]} e5 {[%emt 0:00:09]} 51. Kxh5 {[%emt 0:00:06]} d4 {[%emt 0:00:09]} 52. Kg5 $19 {[%emt 0:00:11]} Kd5 {[%emt 0:00:06]} 53. Kf5 {[%emt 0:00:28]} Nd6+ {[%emt 0:00:06]} 54. Kg4 {[%emt 0:00:06]} Kc4 {[%emt 0:00:03]} 55. Rb1 {[%emt 0:00:18]} Kc3 {[%emt 0:00:19]} 56. Ne1 {[%emt 0:00:29]} Nc4 {[%emt 0:00:13]} 57. Kf5 {[%emt 0:00:00]} d3 {[%emt 0:00:06]} 58. Rc1+ {[%emt 0:00:04]} Kd4 {[%emt 0:00:03]} 59. Rd1 {[%emt 0:00:12]} Ne3+ {[%emt 0:00:02]} 0-1

[Event "13th All African Rapid-ch Women 2024"]
[Site "Accra"]
[Date "2024.03.10"]
[Round "1.4"]
[White "Nassr, Lina"]
[Black "Gertrude Banini"]
[Result "1-0"]
[ECO "D11"]
[WhiteElo "2080"]
[BlackElo "1681"]
[Annotator "RC"]
[PlyCount "85"]
[EventDate "2024.03.07"]
[EventType "rapid"]
[EventCountry "GHA"]
[SourceTitle "playchess.com"]
[Source "ChessBase"]
[SourceQuality "1"]
[TimeControl "900+10"]

1. d4 {[%emt 0:00:03]} d5 {[%emt 0:00:03]} 2. Nf3 {[%emt 0:00:02]} c6 {[%emt 0:00:03]} 3. e3 {[%emt 0:00:09]} Bg4 {[%emt 0:00:10]} 4. c4 {[%emt 0:00:24]} e6 {[%emt 0:00:13]} 5. Nc3 {[%emt 0:00:39]} Nf6 {[%emt 0:00:32]} 6. h3 {[%emt 0:00:19]} Bh5 {[%emt 0:00:03]} 7. cxd5 {[%emt 0:00:53]} cxd5 {[%emt 0:00:06]} 8. Qa4+ {[%emt 0:00:46]} Nbd7 {[%emt 0:00:23]} 9. Ne5 {[%emt 0:00:27]} a6 {[%emt 0:00:59]} 10. Bd3 {[%emt 0:01:38]} b5 {[%emt 0:01:14]} 11. Qb3 {[%emt 0:00:39]} Nxe5 {[%emt 0:00:29]} 12. dxe5 {[%emt 0:00:12]} Nd7 {[%emt 0:00:10]} 13. f4 {[%emt 0:02:46]} Qh4+ {[%emt 0:01:46]} 14. Kf1 {[%emt 0:00:09]} Nc5 {[%emt 0:00:56]} 15. Qc2 {[%emt 0:00:50]} Nxd3 {[%emt 0:00:21]} 16. Qxd3 {[%emt 0:00:03]} Bg6 {[%emt 0:00:44]} 17. Qd1 {[%emt 0:01:41]} Qd8 {[%emt 0:00:56]} 18. g4 {[%emt 0:02:00]} Qb6 {[%emt 0:01:48]} 19. Qf3 {[%emt 0:00:54]} h6 {[%emt 0:00:27]} 20. f5 {[%emt 0:00:33]} exf5 {[%emt 0:00:05]} 21. Nxd5 {[%emt 0:00:32]} Qd8 {[%emt 0:03:52]} 22. Nc7+ {[%emt 0:00:40]} Qxc7 {[%emt 0:00:14]} 23. Qxa8+ {[%emt 0:00:03]} Kd7 {[%emt 0:00:46]} 24. Qd5+ {[%emt 0:00:32]} Kc8 {[%emt 0:00:37]} 25. Bd2 {[%emt 0:00:22]} Qc4+ {[%emt 0:00:34]} 26. Qxc4+ {[%emt 0:00:02]} bxc4 {[%emt 0:00:01]} 27. Rc1 {[%emt 0:00:39]} fxg4 {[%emt 0:00:12]} 28. Rxc4+ {[%emt 0:00:02]} Kb7 {[%emt 0:00:10]} 29. Kf2 {[%emt 0:01:06]} gxh3 {[%emt 0:00:15]} 30. Rhc1 {[%emt 0:00:19]} Bf5 {[%emt 0:00:27]} 31. Rc7+ {[%emt 0:00:19]} Kb8 {[%emt 0:00:48]} 32. Rxf7 {[%emt 0:00:12]} h2 {[%emt 0:00:31]} 33. Rxf5 {[%emt 0:00:15]} h1=Q 34. Rxh1 {[%emt 0:00:08]} Bc5 {[%emt 0:00:40]} 35. Rf7 {[%emt 0:00:04]} g5 {[%emt 0:00:07]} 36. b4 {[%emt 0:00:10]} Bb6 {[%emt 0:00:09]} 37. Kg3 {[%emt 0:00:18]} Bc7 {[%emt 0:00:03]} 38. Bc3 {[%emt 0:00:04]} Re8 {[%emt 0:00:12]} 39. Rxh6 {[%emt 0:00:10]} Kb7 {[%emt 0:00:06]} 40. Rhh7 {[%emt 0:00:03]} Rc8 {[%emt 0:00:05]} 41. Kg4 {[%emt 0:00:04]} Kb6 {[%emt 0:00:02]} 42. Rxc7 {[%emt 0:00:07]} Rxc7 {[%emt 0:00:51]} 43. Rxc7 {[%emt 0:00:10]} 1-0

[Event "13th All African Rapid-ch Women 2024"]
[Site "Accra"]
[Date "2024.03.10"]
[Round "1.5"]
[White "Yavo Tchetche, Marie"]
[Black "Junior, Ednasia"]
[Result "1/2-1/2"]
[ECO "A52"]
[WhiteElo "1659"]
[BlackElo "1915"]
[Annotator "RC"]
[PlyCount "137"]
[EventDate "2024.03.07"]
[EventType "rapid"]
[EventCountry "GHA"]
[SourceTitle "playchess.com"]
[Source "ChessBase"]
[SourceQuality "1"]
[TimeControl "900+10"]

1. d4 {[%emt 0:00:06]} Nf6 {[%emt 0:00:00]} 2. c4 {[%emt 0:00:12]} e5 {[%emt 0:00:02]} 3. dxe5 {[%emt 0:02:08]} Ng4 {[%emt 0:00:00]} 4. Nf3 {[%emt 0:00:17]} Bc5 {[%emt 0:00:02]} 5. e3 {[%emt 0:00:18]} Nc6 {[%emt 0:00:01]} 6. Qd5 {[%emt 0:01:55]} Qe7 {[%emt 0:00:03]} 7. a3 {[%emt 0:00:48]} a5 {[%emt 0:00:01]} 8. Be2 {[%emt 0:00:41]} Ngxe5 {[%emt 0:00:05]} 9. O-O {[%emt 0:00:21]} d6 {[%emt 0:00:23]} 10. Qd1 {[%emt 0:00:42]} O-O {[%emt 0:00:06]} 11. Nc3 {[%emt 0:00:02]} Be6 {[%emt 0:00:47]} 12. b3 {[%emt 0:00:18]} f5 {[%emt 0:00:31]} 13. Bb2 {[%emt 0:00:20]} Rf6 {[%emt 0:02:45]} 14. Nd5 {[%emt 0:00:07]} Bxd5 {[%emt 0:00:16]} 15. cxd5 {[%emt 0:01:19]} Nxf3+ {[%emt 0:00:23]} 16. Bxf3 {[%emt 0:00:09]} Ne5 {[%emt 0:00:04]} 17. b4 {[%emt 0:03:32]} Bb6 {[%emt 0:03:53]} 18. b5 {[%emt 0:00:32]} Rh6 {[%emt 0:00:15]} 19. Bxe5 {[%emt 0:00:22]} Qxe5 {[%emt 0:00:04]} 20. g3 {[%emt 0:00:03]} g5 {[%emt 0:01:20]} 21. Re1 {[%emt 0:00:30]} g4 {[%emt 0:01:22]} 22. Bg2 {[%emt 0:00:03]} Qe8 {[%emt 0:00:01]} 23. h4 {[%emt 0:01:59]} gxh3 {[%emt 0:00:18]} 24. Bh1 {[%emt 0:00:02]} h2+ {[%emt 0:00:55]} 25. Kg2 {[%emt 0:00:05]} Qxb5 {[%emt 0:01:28]} 26. Qf3 {[%emt 0:00:15]} Rf8 {[%emt 0:00:15]} 27. Qf4 {[%emt 0:00:33]} Rg6 {[%emt 0:00:37]} 28. Kxh2 {[%emt 0:00:10]} Qd7 {[%emt 0:00:14]} 29. Kg1 {[%emt 0:00:07]} Rg4 {[%emt 0:00:52]} 30. Qh6 {[%emt 0:00:10]} Rg6 {[%emt 0:00:07]} 31. Qf4 {[%emt 0:00:10]} Qg7 {[%emt 0:00:01]} 32. Bg2 {[%emt 0:00:19]} Rg4 {[%emt 0:00:27]} 33. Qf3 {[%emt 0:00:09]} h5 {[%emt 0:00:10]} 34. Bh3 {[%emt 0:00:07]} Rg5 {[%emt 0:00:06]} 35. Qf4 {[%emt 0:00:15]} Bc5 {[%emt 0:00:54]} 36. Rab1 {[%emt 0:00:23]} b6 {[%emt 0:00:10]} 37. a4 {[%emt 0:00:05]} Qf6 {[%emt 0:00:24]} 38. Qh4 {[%emt 0:00:28]} Re8 {[%emt 0:00:43]} 39. f4 {[%emt 0:00:53]} Rg6 {[%emt 0:00:10]} 40. Qxf6 {[%emt 0:00:21]} Rxf6 {[%emt 0:00:00]} 41. Kf2 {[%emt 0:00:08]} Kg7 {[%emt 0:00:07]} 42. Bg2 {[%emt 0:00:22]} Rf7 {[%emt 0:00:06]} 43. Bf3 {[%emt 0:00:03]} Kg6 {[%emt 0:00:05]} 44. Re2 {[%emt 0:00:04]} Rfe7 {[%emt 0:00:15]} 45. Rbe1 {[%emt 0:00:19]} Bb4 {[%emt 0:00:17]} 46. Rh1 {[%emt 0:00:02]} Rh8 {[%emt 0:00:02]} 47. e4 {[%emt 0:00:10]} fxe4 {[%emt 0:00:34]} 48. Rxe4 {[%emt 0:00:10]} Rxe4 {[%emt 0:00:30]} 49. Bxe4+ {[%emt 0:00:02]} Kg7 {[%emt 0:00:02]} 50. Bf3 {[%emt 0:00:03]} Kg6 {[%emt 0:00:17]} 51. g4 {[%emt 0:00:10]} h4 {[%emt 0:00:01]} 52. Be4+ {[%emt 0:00:02]} Kg7 {[%emt 0:00:11]} 53. Kf3 {[%emt 0:00:02]} Bc5 {[%emt 0:00:23]} 54. g5 {[%emt 0:00:03]} h3 {[%emt 0:00:12]} 55. Kg4 {[%emt 0:00:12]} Re8 {[%emt 0:00:28]} 56. Kf3 {[%emt 0:00:12]} Rh8 {[%emt 0:00:03]} 57. Bf5 {[%emt 0:00:06]} h2 {[%emt 0:00:06]} 58. Be6 {[%emt 0:00:02]} Kg6 {[%emt 0:00:14]} 59. Kg3 {[%emt 0:00:04]} Be3 {[%emt 0:00:12]} 60. Kg4 {[%emt 0:00:21]} Bg1 {[%emt 0:00:15]} 61. f5+ {[%emt 0:00:02]} Kg7 {[%emt 0:00:01]} 62. f6+ {[%emt 0:00:44]} Kg6 {[%emt 0:00:02]} 63. Bf5+ {[%emt 0:00:02]} Kf7 {[%emt 0:00:01]} 64. Be6+ {[%emt 0:00:20]} Kg6 {[%emt 0:00:16]} 65. Bf5+ {[%emt 0:00:09]} Kf7 {[%emt 0:00:02]} 66. Be6+ {[%emt 0:00:04]} Kg6 {[%emt 0:00:38]} 67. Bf5+ {[%emt 0:00:01]} Kf7 {[%emt 0:00:01]} 68. Be6+ {[%emt 0:00:01]} Kg6 69. Bf5+ {[%emt 0:00:10]} 1/2-1/2

[Event "13th All African Rapid-ch Women 2024"]
[Site "Accra"]
[Date "2024.03.10"]
[Round "1.6"]
[White "Vilhete, Vania Fausto Da T."]
[Black "Benson, Maud"]
[Result "1-0"]
[ECO "E91"]
[WhiteElo "1829"]
[BlackElo "1664"]
[Annotator "NA RC"]
[PlyCount "95"]
[EventDate "2024.03.07"]
[EventType "rapid"]
[EventCountry "GHA"]
[SourceTitle "playchess.com"]
[Source "ChessBase"]
[SourceQuality "1"]
[TimeControl "900+10"]

1. d4 {[%emt 0:00:01]} Nf6 {[%emt 0:00:03]} 2. c4 {[%emt 0:00:02]} g6 {[%emt 0:00:12]} 3. Nc3 {[%emt 0:00:03]} Bg7 {[%emt 0:00:03]} 4. e4 {[%emt 0:00:01]} d6 {[%emt 0:00:03]} 5. Be2 {[%emt 0:00:05]} O-O {[%emt 0:00:06]} 6. Bg5 {[%emt 0:00:03]} Nbd7 {[%emt 0:00:12]} 7. Nf3 {[%emt 0:00:24]} Re8 {[%emt 0:01:01]} 8. O-O {[%emt 0:00:07]} e5 {[%emt 0:00:13]} 9. d5 {[%emt 0:00:03]} h6 {[%emt 0:00:14]} 10. Bh4 {[%emt 0:00:17]} a5 {[%emt 0:00:26]} 11. Nd2 {[%emt 0:00:20]} g5 {[%emt 0:00:16]} 12. Bg3 {[%emt 0:00:02]} Nc5 {[%emt 0:00:07]} 13. Rc1 {[%emt 0:00:17]} Bd7 {[%emt 0:01:30]} 14. Qc2 {[%emt 0:01:04]} a4 {[%emt 0:00:09]} 15. b4 {[%emt 0:03:40]} axb3 {[%emt 0:01:07]} 16. axb3 {[%emt 0:00:07]} Ra3 {[%emt 0:03:51]} 17. Qb2 {[%emt 0:00:01]} Qa8 {[%emt 0:00:01]} 18. Ra1 {[%emt 0:00:05]} Rxa1 {[%emt 0:01:45]} 19. Rxa1 {[%emt 0:00:02]} Qc8 {[%emt 0:00:00]} 20. b4 {[%emt 0:00:20]} Ncxe4 {[%emt 0:00:44]} 21. Ndxe4 {[%emt 0:00:48]} Nxe4 {[%emt 0:00:02]} 22. Nxe4 {[%emt 0:00:38]} f5 {[%emt 0:00:02]} 23. Nc3 {[%emt 0:01:47]} f4 {[%emt 0:00:08]} 24. Rc1 {[%emt 0:00:39]} fxg3 {[%emt 0:00:26]} 25. hxg3 {[%emt 0:00:03]} e4 {[%emt 0:00:09]} 26. Qd2 {[%emt 0:00:57]} Bg4 {[%emt 0:00:50]} 27. Bxg4 {[%emt 0:01:17]} Qxg4 {[%emt 0:00:03]} 28. Qe3 {[%emt 0:01:28]} c6 {[%emt 0:01:29]} 29. dxc6 {[%emt 0:00:52]} bxc6 {[%emt 0:00:01]} 30. b5 {[%emt 0:00:13]} c5 {[%emt 0:01:13]} 31. Ne2 {[%emt 0:00:16]} Qe6 {[%emt 0:01:45]} 32. Kf1 {[%emt 0:01:50]} Bb2 {[%emt 0:01:05]} 33. Rb1 {[%emt 0:00:53]} Qe5 {[%emt 0:00:06]} 34. Qb3 {[%emt 0:00:16]} Bd4 {[%emt 0:00:14]} 35. Nxd4 {[%emt 0:00:05]} cxd4 {[%emt 0:00:01]} 36. c5+ {[%emt 0:00:10]} Kg7 {[%emt 0:00:02]} 37. c6 {[%emt 0:00:05]} Qc5 {[%emt 0:00:07]} 38. Qb4 {[%emt 0:00:15]} e3 {[%emt 0:01:13]} 39. Qxc5 {[%emt 0:00:17]} e2+ {[%emt 0:00:03]} 40. Ke1 {[%emt 0:00:01]} dxc5 {[%emt 0:00:03]} 41. b6 {[%emt 0:00:06]} d3 {[%emt 0:00:01]} 42. Kd2 {[%emt 0:00:15]} c4 {[%emt 0:00:01]} 43. b7 {[%emt 0:00:05]} Rb8 {[%emt 0:00:56]} 44. c7 {[%emt 0:00:08]} Rxb7 {[%emt 0:00:16]} 45. Rxb7 {[%emt 0:00:22]} c3+ {[%emt 0:00:01]} 46. Kxd3 {[%emt 0:00:03]} e1=Q {[%emt 0:00:30]} 47. c8=Q+ {[%emt 0:02:07]} Kg6 {[%emt 0:00:00]} 48. Rb6+ {[%emt 0:00:00]} 1-0

[Event "13th All African Rapid-ch Women 2024"]
[Site "Accra"]
[Date "2024.03.10"]
[Round "1.7"]
[White "Ayiku, Angela Naa Amerley"]
[Black "Laubscher, Anzel"]
[Result "0-1"]
[ECO "B50"]
[WhiteElo "1629"]
[BlackElo "1820"]
[Annotator "NA RC"]
[PlyCount "74"]
[EventDate "2024.03.07"]
[EventType "rapid"]
[EventCountry "GHA"]
[SourceTitle "playchess.com"]
[Source "ChessBase"]
[SourceQuality "1"]
[TimeControl "900+10"]

1. e4 {[%emt 0:00:02]} c5 {[%emt 0:00:01]} 2. Nf3 {[%emt 0:00:04]} d6 {[%emt 0:00:01]} 3. Bc4 {[%emt 0:00:12]} Nf6 {[%emt 0:00:06]} 4. Nc3 {[%emt 0:00:15]} Nc6 {[%emt 0:00:10]} 5. O-O {[%emt 0:00:15]} g6 {[%emt 0:00:02]} 6. d3 {[%emt 0:00:04]} Bg7 {[%emt 0:00:11]} 7. a3 {[%emt 0:00:22]} O-O {[%emt 0:00:16]} 8. h3 {[%emt 0:00:02]} a6 {[%emt 0:00:37]} 9. Be3 {[%emt 0:00:08]} b5 {[%emt 0:00:37]} 10. Ba2 {[%emt 0:00:25]} Rb8 {[%emt 0:01:18]} 11. Re1 {[%emt 0:00:38]} Nd7 {[%emt 0:01:23]} 12. Bd2 {[%emt 0:01:27]} e6 {[%emt 0:01:58]} 13. Bg5 {[%emt 0:00:26]} Bf6 {[%emt 0:01:05]} 14. Bxf6 {[%emt 0:00:10]} Qxf6 {[%emt 0:00:25]} 15. Qd2 {[%emt 0:00:14]} Nde5 {[%emt 0:02:11]} 16. Nh2 {[%emt 0:02:40]} b4 {[%emt 0:02:08]} 17. Ne2 {[%emt 0:00:27]} h5 {[%emt 0:00:46]} 18. axb4 {[%emt 0:00:41]} Nxb4 {[%emt 0:00:08]} 19. c3 {[%emt 0:00:23]} Nbxd3 {[%emt 0:01:15]} 20. Rf1 {[%emt 0:00:57]} Rxb2 {[%emt 0:01:06]} 21. Qe3 {[%emt 0:00:50]} g5 {[%emt 0:00:39]} 22. Ng3 {[%emt 0:02:01]} h4 {[%emt 0:00:48]} 23. Ne2 {[%emt 0:00:59]} Bd7 {[%emt 0:00:41]} 24. Ng4 {[%emt 0:00:16]} Nxg4 {[%emt 0:00:08]} 25. hxg4 {[%emt 0:00:02]} Nf4 {[%emt 0:00:27]} 26. Nxf4 {[%emt 0:00:48]} gxf4 {[%emt 0:00:27]} 27. Qd3 {[%emt 0:00:39]} Rb6 {[%emt 0:00:24]} 28. Rab1 {[%emt 0:00:18]} Rfb8 {[%emt 0:00:02]} 29. Rxb6 {[%emt 0:00:03]} Rxb6 {[%emt 0:00:02]} 30. Re1 {[%emt 0:00:15]} e5 {[%emt 0:00:09]} 31. Bc4 {[%emt 0:00:11]} Bxg4 {[%emt 0:00:13]} 32. Qd5 {[%emt 0:00:22]} f3 {[%emt 0:00:18]} 33. Qd3 {[%emt 0:01:12]} fxg2 {[%emt 0:00:08]} 34. Kxg2 {[%emt 0:00:02]} h3+ {[%emt 0:00:11]} 35. Kg1 {[%emt 0:00:22]} Bf3 {[%emt 0:00:13]} 36. Qf1 {[%emt 0:00:20]} h2+ {[%emt 0:00:17]} 37. Kxh2 {[%emt 0:00:14]} Qh4+ {[%emt 0:00:09]} 0-1